[Event "*** MasterClass Titled Tuesday Blitz"]
[Site "Chess.com"]
[Date "2017.08.01"]
[Round "3"]
[White "Bengalas"]
[Black "Jospem"]
[Result "0-1"]
[WhiteElo "2427"]
[BlackElo "2616"]
[TimeControl "180+2"]
[EndTime "13:41:05 PDT"]
[Termination "Jospem won on time"]

1. d4 {[%clk 0:03:01.9]} 1... Nf6 {[%clk 0:03:01]} 2. c4 {[%clk 0:03:02]} 2...
e6 {[%clk 0:03:02.3]} 3. Nc3 {[%clk 0:03:02.8]} 3... Bb4 {[%clk 0:03:02.7]} 4.
Qc2 {[%clk 0:03:03.7]} 4... b6 {[%clk 0:03:02.6]} 5. Nf3 {[%clk 0:03:02.2]} 5...
Bb7 {[%clk 0:03:03.6]} 6. g3 {[%clk 0:03:00.1]} 6... c5 {[%clk 0:03:02.3]} 7.
dxc5 {[%clk 0:02:59.9]} 7... bxc5 {[%clk 0:03:03.2]} 8. Bg2 {[%clk 0:03:00.3]}
8... O-O {[%clk 0:03:03.8]} 9. O-O {[%clk 0:03:00.3]} 9... d6 {[%clk 0:02:59.7]}
10. Rd1 {[%clk 0:03:00.4]} 10... Qe7 {[%clk 0:02:58.2]} 11. b3 {[%clk
0:02:57.8]} 11... Bxc3 {[%clk 0:02:52.4]} 12. Qxc3 {[%clk 0:02:58.3]} 12... Nc6
{[%clk 0:02:53.3]} 13. Bf4 {[%clk 0:02:47.2]} 13... Rfd8 {[%clk 0:02:53.8]} 14.
a3 {[%clk 0:02:31]} 14... h6 {[%clk 0:02:53.7]} 15. b4 {[%clk 0:02:27.7]} 15...
e5 {[%clk 0:02:50.9]} 16. Be3 {[%clk 0:02:20]} 16... Nd4 {[%clk 0:02:51.8]} 17.
Kf1 {[%clk 0:02:17.3]} 17... Nxf3 {[%clk 0:02:44.9]} 18. Bxf3 {[%clk 0:02:07.6]}
18... Bxf3 {[%clk 0:02:42.8]} 19. exf3 {[%clk 0:02:05.1]} 19... cxb4 {[%clk
0:02:29.1]} 20. axb4 {[%clk 0:02:04.7]} 20... d5 {[%clk 0:02:30.3]} 21. Bc5
{[%clk 0:01:54.5]} 21... Qe6 {[%clk 0:02:25.1]} 22. Rxa7 {[%clk 0:01:41.9]}
22... Rxa7 {[%clk 0:02:21.9]} 23. Bxa7 {[%clk 0:01:42.6]} 23... Ra8 {[%clk
0:01:48.6]} 24. Bc5 {[%clk 0:01:28.1]} 24... dxc4 {[%clk 0:01:49.5]} 25. Rc1
{[%clk 0:01:20.3]} 25... e4 {[%clk 0:01:48.1]} 26. Kg2 {[%clk 0:00:52.1]} 26...
Ra2 {[%clk 0:01:35.7]} 27. Qxc4 {[%clk 0:00:35]} 27... exf3+ {[%clk 0:01:36.1]}
28. Kxf3 {[%clk 0:00:32.4]} 28... Qf5+ {[%clk 0:01:36.7]} 29. Kg2 {[%clk
0:00:27.9]} 29... Rb2 {[%clk 0:01:05.1]} 30. Be3 {[%clk 0:00:21.6]} 30... Ng4
{[%clk 0:00:54.9]} 31. Qc8+ {[%clk 0:00:21.4]} 31... Qxc8 {[%clk 0:00:55.6]} 32.
Rxc8+ {[%clk 0:00:20.3]} 32... Kh7 {[%clk 0:00:57.5]} 33. Bc5 {[%clk 0:00:20.9]}
33... f5 {[%clk 0:00:55]} 34. h3 {[%clk 0:00:20.4]} 34... Nf6 {[%clk 0:00:55.9]}
35. Rb8 {[%clk 0:00:19.6]} 35... Nd5 {[%clk 0:00:52.3]} 36. b5 {[%clk
0:00:19.6]} 36... Rc2 {[%clk 0:00:42.5]} 37. Bd4 {[%clk 0:00:18.9]} 37... Rc4
{[%clk 0:00:42.9]} 38. Be3 {[%clk 0:00:17.6]} 38... Rc2 {[%clk 0:00:43.1]} 39.
Kf3 {[%clk 0:00:17.8]} 39... Rb2 {[%clk 0:00:42.3]} 40. b6 {[%clk 0:00:17.4]}
40... Rb3 {[%clk 0:00:24.3]} 41. b7 {[%clk 0:00:16]} 41... Nf6 {[%clk
0:00:22.1]} 42. Kg2 {[%clk 0:00:09.6]} 42... Nd7 {[%clk 0:00:22.9]} 43. Rd8
{[%clk 0:00:10]} 43... Rxb7 {[%clk 0:00:23.4]} 44. Bd4 {[%clk 0:00:11]} 44...
Kg6 {[%clk 0:00:22]} 45. h4 {[%clk 0:00:09.8]} 45... Kf7 {[%clk 0:00:22.1]} 46.
Be3 {[%clk 0:00:10.2]} 46... Nf6 {[%clk 0:00:21.5]} 47. Bd4 {[%clk 0:00:09.8]}
47... Ne4 {[%clk 0:00:19.5]} 48. Ra8 {[%clk 0:00:10.3]} 48... Rd7 {[%clk
0:00:18.8]} 49. Be3 {[%clk 0:00:10.7]} 49... Nf6 {[%clk 0:00:19.9]} 50. Ra6
{[%clk 0:00:10.6]} 50... Ng4 {[%clk 0:00:19.8]} 51. Bc5 {[%clk 0:00:11.2]} 51...
Rc7 {[%clk 0:00:20.3]} 52. Bd4 {[%clk 0:00:11.5]} 52... Rd7 {[%clk 0:00:21.4]}
53. Bc5 {[%clk 0:00:12.6]} 53... Rd5 {[%clk 0:00:22.1]} 54. Ra7+ {[%clk
0:00:11.9]} 54... Kg8 {[%clk 0:00:21]} 55. Be3 {[%clk 0:00:12.4]} 55... Rb5
{[%clk 0:00:20.9]} 56. Bd4 {[%clk 0:00:11.5]} 56... Ne5 {[%clk 0:00:16.4]} 57.
Bxe5 {[%clk 0:00:12.2]} 57... Rxe5 {[%clk 0:00:16.6]} 58. Kf3 {[%clk 0:00:13.1]}
58... Rd5 {[%clk 0:00:17.2]} 59. Kg2 {[%clk 0:00:14]} 59... Kh7 {[%clk
0:00:18.1]} 60. Kf3 {[%clk 0:00:14.9]} 60... Kg6 {[%clk 0:00:19.1]} 61. Kg2
{[%clk 0:00:13.9]} 61... Rd3 {[%clk 0:00:19.6]} 62. Kg1 {[%clk 0:00:14.6]} 62...
Kf6 {[%clk 0:00:19.5]} 63. Kg2 {[%clk 0:00:15.5]} 63... g5 {[%clk 0:00:20.2]}
64. Ra6+ {[%clk 0:00:15.7]} 64... Kg7 {[%clk 0:00:20.8]} 65. hxg5 {[%clk
0:00:16.9]} 65... hxg5 {[%clk 0:00:22.7]} 66. Rb6 {[%clk 0:00:17.1]} 66... Kf7
{[%clk 0:00:23.6]} 67. Ra6 {[%clk 0:00:18]} 67... Rc3 {[%clk 0:00:24.6]} 68. Rb6
{[%clk 0:00:19]} 68... Rc5 {[%clk 0:00:25.5]} 69. Ra6 {[%clk 0:00:19.8]} 69...
Re5 {[%clk 0:00:26.5]} 70. Rb6 {[%clk 0:00:20]} 70... Re4 {[%clk 0:00:27.6]} 71.
Ra6 {[%clk 0:00:20.8]} 71... g4 {[%clk 0:00:28.6]} 72. Rb6 {[%clk 0:00:21.4]}
72... Re6 {[%clk 0:00:30.5]} 73. Rxe6 {[%clk 0:00:21.8]} 73... Kxe6 {[%clk
0:00:32.4]} 74. f3 {[%clk 0:00:22.7]} 74... Ke5 {[%clk 0:00:33.5]} 75. fxg4
{[%clk 0:00:23.8]} 75... fxg4 {[%clk 0:00:34.5]} 76. Kf1 {[%clk 0:00:20.7]}
76... Kd4 {[%clk 0:00:33.9]} 77. Ke2 {[%clk 0:00:18.9]} 77... Ke4 {[%clk
0:00:34.7]} 78. Kf2 {[%clk 0:00:20.1]} 78... Kd3 {[%clk 0:00:35.6]} 79. Kf1
{[%clk 0:00:20]} 79... Ke3 {[%clk 0:00:36.8]} 80. Ke1 {[%clk 0:00:18.9]} 80...
Kf3 {[%clk 0:00:37.7]} 81. Kf1 {[%clk 0:00:19.5]} 81... Kxg3 {[%clk 0:00:39.6]}
82. Kg1 {[%clk 0:00:20.6]} 82... Kh3 {[%clk 0:00:41.3]} 83. Kh1 {[%clk
0:00:21.6]} 83... g3 {[%clk 0:00:42.6]} 84. Kg1 {[%clk 0:00:21.8]} 84... g2
{[%clk 0:00:44.5]} 0-1

[Event "*** MasterClass Titled Tuesday Blitz"]
[Site "Chess.com"]
[Date "2017.08.01"]
[Round "3"]
[White "Cruel_Yaro"]
[Black "Fins0905"]
[Result "1-0"]
[WhiteElo "2583"]
[BlackElo "2390"]
[TimeControl "180+2"]
[EndTime "13:41:49 PDT"]
[Termination "Cruel_Yaro won on time"]

1. d4 {[%clk 0:03:01.9]} 1... d5 {[%clk 0:02:59.3]} 2. c4 {[%clk 0:03:02.5]}
2... c6 {[%clk 0:02:59.2]} 3. Nc3 {[%clk 0:03:02.7]} 3... Nf6 {[%clk 0:03:00.1]}
4. Nf3 {[%clk 0:03:04.2]} 4... dxc4 {[%clk 0:03:00.6]} 5. a4 {[%clk 0:03:04.4]}
5... Bf5 {[%clk 0:03:00.1]} 6. Ne5 {[%clk 0:03:02.6]} 6... Nbd7 {[%clk
0:03:00.2]} 7. Nxc4 {[%clk 0:03:03.9]} 7... Nb6 {[%clk 0:03:00.1]} 8. Ne5 {[%clk
0:03:04.1]} 8... a5 {[%clk 0:03:00.6]} 9. f3 {[%clk 0:03:04.4]} 9... Nfd7 {[%clk
0:02:58]} 10. Nxd7 {[%clk 0:03:05.2]} 10... Nxd7 {[%clk 0:02:58.1]} 11. e4
{[%clk 0:03:06.6]} 11... Bg6 {[%clk 0:02:59.2]} 12. Be2 {[%clk 0:03:08]} 12...
e6 {[%clk 0:02:56.2]} 13. O-O {[%clk 0:03:06.2]} 13... Be7 {[%clk 0:02:45.7]}
14. Be3 {[%clk 0:03:06.6]} 14... O-O {[%clk 0:02:46.2]} 15. Qb3 {[%clk
0:03:06.9]} 15... Qb6 {[%clk 0:02:25.8]} 16. Qxb6 {[%clk 0:03:06.7]} 16... Nxb6
{[%clk 0:02:27.7]} 17. d5 {[%clk 0:03:07.7]} 17... Nd7 {[%clk 0:02:27.1]} 18.
Rfd1 {[%clk 0:02:55]} 18... exd5 {[%clk 0:02:19]} 19. exd5 {[%clk 0:02:55.7]}
19... Bc5 {[%clk 0:02:15.7]} 20. Bf2 {[%clk 0:02:47]} 20... Bxf2+ {[%clk
0:02:11.7]} 21. Kxf2 {[%clk 0:02:47.4]} 21... Nc5 {[%clk 0:02:13.6]} 22. Bc4
{[%clk 0:02:33.1]} 22... Rab8 {[%clk 0:01:54.3]} 23. Rd2 {[%clk 0:02:05.6]}
23... Rfc8 {[%clk 0:01:20]} 24. Rad1 {[%clk 0:01:54.7]} 24... Kf8 {[%clk
0:01:17.1]} 25. Ke3 {[%clk 0:01:38.4]} 25... h6 {[%clk 0:01:10.5]} 26. g4 {[%clk
0:01:27.8]} 26... f6 {[%clk 0:01:02.8]} 27. d6 {[%clk 0:01:03.4]} 27... Re8+
{[%clk 0:00:53.9]} 28. Kf2 {[%clk 0:00:52.7]} 28... Red8 {[%clk 0:00:39.6]} 29.
Ne2 {[%clk 0:00:32.5]} 29... Bf7 {[%clk 0:00:36.1]} 30. Bxf7 {[%clk 0:00:18.5]}
30... Kxf7 {[%clk 0:00:38]} 31. Ng3 {[%clk 0:00:14.1]} 31... Nxa4 {[%clk
0:00:29.5]} 32. Nf5 {[%clk 0:00:09.8]} 32... g6 {[%clk 0:00:27.3]} 33. Nxh6+
{[%clk 0:00:07.7]} 33... Kg7 {[%clk 0:00:28.8]} 34. g5 {[%clk 0:00:09.2]} 34...
Nc5 {[%clk 0:00:16.5]} 35. Re2 {[%clk 0:00:08.9]} 35... fxg5 {[%clk 0:00:15.8]}
36. Ng4 {[%clk 0:00:09.7]} 36... Re8 {[%clk 0:00:14.3]} 37. Rc2 {[%clk
0:00:06.4]} 37... Nd7 {[%clk 0:00:14.7]} 38. Rc3 {[%clk 0:00:06]} 38... Re6
{[%clk 0:00:15]} 39. Ra3 {[%clk 0:00:06.1]} 39... b6 {[%clk 0:00:16.2]} 40. b4
{[%clk 0:00:05.9]} 40... axb4 {[%clk 0:00:15.5]} 41. Ra7 {[%clk 0:00:06.4]}
41... Rd8 {[%clk 0:00:17.2]} 42. Rc7 {[%clk 0:00:07.2]} 42... c5 {[%clk
0:00:18]} 43. Ne3 {[%clk 0:00:05.3]} 43... Kf8 {[%clk 0:00:17.8]} 44. Nc4 {[%clk
0:00:04.2]} 44... b3 {[%clk 0:00:18.5]} 45. Rb1 {[%clk 0:00:04.7]} 45... b5
{[%clk 0:00:19.7]} 46. Ne3 {[%clk 0:00:05.6]} 46... c4 {[%clk 0:00:20.5]} 47.
Rb7 {[%clk 0:00:04.3]} 47... Nc5 {[%clk 0:00:19.7]} 48. Rxb5 {[%clk 0:00:04.1]}
48... Nd3+ {[%clk 0:00:21.1]} 49. Ke2 {[%clk 0:00:05.3]} 49... Rdxd6 {[%clk
0:00:17.5]} 50. Rxg5 {[%clk 0:00:05.6]} 50... Rd7 {[%clk 0:00:17.6]} 51. Rg4
{[%clk 0:00:04.7]} 51... Rde7 {[%clk 0:00:18.5]} 52. Re4 {[%clk 0:00:05.1]}
52... Rxe4 {[%clk 0:00:19.9]} 53. fxe4 {[%clk 0:00:07]} 53... Rxe4 {[%clk
0:00:21.5]} 54. Kd2 {[%clk 0:00:08.3]} 54... Rxe3 {[%clk 0:00:15.5]} 55. Kxe3
{[%clk 0:00:08.5]} 55... Kg7 {[%clk 0:00:06.5]} 56. Kd4 {[%clk 0:00:09.3]} 56...
Kh6 {[%clk 0:00:04]} 57. Kxc4 {[%clk 0:00:10.1]} 57... Ne5+ {[%clk 0:00:05]} 58.
Kd5 {[%clk 0:00:08.8]} 58... Nf3 {[%clk 0:00:05.2]} 59. Rxb3 {[%clk 0:00:09.7]}
59... Nh4 {[%clk 0:00:03.1]} 60. Ke5 {[%clk 0:00:09]} 60... Kh5 {[%clk
0:00:03.7]} 61. Kf4 {[%clk 0:00:08.7]} 61... g5+ {[%clk 0:00:05.1]} 62. Kg3
{[%clk 0:00:08.9]} 62... Nf5+ {[%clk 0:00:06.4]} 63. Kg2 {[%clk 0:00:10.1]}
63... Kg4 {[%clk 0:00:07.6]} 64. Rb4+ {[%clk 0:00:11]} 64... Kh5 {[%clk
0:00:09]} 65. Kf3 {[%clk 0:00:12.2]} 65... Nh4+ {[%clk 0:00:09.3]} 66. Kg3
{[%clk 0:00:13]} 66... Nf5+ {[%clk 0:00:10.4]} 67. Kf2 {[%clk 0:00:13.9]} 67...
Nh4 {[%clk 0:00:09.6]} 68. h3 {[%clk 0:00:15]} 68... Nf5 {[%clk 0:00:10.5]} 69.
Kf3 {[%clk 0:00:15.6]} 69... Ne7 {[%clk 0:00:07.5]} 70. Rb7 {[%clk 0:00:13.9]}
70... Nf5 {[%clk 0:00:07.1]} 71. Rh7+ {[%clk 0:00:14]} 71... Kg6 {[%clk
0:00:07.9]} 72. Rh8 {[%clk 0:00:15.1]} 72... Kg7 {[%clk 0:00:08.3]} 73. Rc8
{[%clk 0:00:13.9]} 73... Kg6 {[%clk 0:00:09.8]} 74. Ke4 {[%clk 0:00:12.1]} 74...
Nh4 {[%clk 0:00:08.7]} 75. Rc6+ {[%clk 0:00:10.1]} 75... Kh5 {[%clk 0:00:09.5]}
76. Rc5 {[%clk 0:00:09.6]} 76... Ng2 {[%clk 0:00:08.4]} 77. Rc8 {[%clk
0:00:06.3]} 77... Nh4 {[%clk 0:00:07.2]} 78. Rh8+ {[%clk 0:00:05.9]} 78... Kg6
{[%clk 0:00:08.4]} 79. Ke5 {[%clk 0:00:07.1]} 79... Kg7 {[%clk 0:00:08.4]} 80.
Ra8 {[%clk 0:00:07.5]} 80... Kg6 {[%clk 0:00:09.9]} 81. Ke6 {[%clk 0:00:08.1]}
81... Nf3 {[%clk 0:00:10.4]} 82. Rg8+ {[%clk 0:00:08.8]} 82... Kh5 {[%clk
0:00:10.2]} 83. Kf5 {[%clk 0:00:09.4]} 83... Kh4 {[%clk 0:00:10.3]} 84. Rh8+
{[%clk 0:00:08.4]} 84... Kg3 {[%clk 0:00:10.7]} 85. Rh6 {[%clk 0:00:09.7]} 85...
Kf2 {[%clk 0:00:08.4]} 86. Kg4 {[%clk 0:00:10.2]} 86... Kg2 {[%clk 0:00:09.7]}
87. Rh5 {[%clk 0:00:10.6]} 87... Nh2+ {[%clk 0:00:02.6]} 88. Kxg5 {[%clk
0:00:11]} 88... Kg3 {[%clk 0:00:03.9]} 89. Rh8 {[%clk 0:00:09.9]} 89... Nf3+
{[%clk 0:00:04.9]} 90. Kf5 {[%clk 0:00:11]} 90... Nh4+ {[%clk 0:00:06]} 91. Ke4
{[%clk 0:00:12]} 91... Kxh3 {[%clk 0:00:06.9]} 92. Kf4 {[%clk 0:00:12.9]} 1-0

[Event "*** MasterClass Titled Tuesday Blitz"]
[Site "Chess.com"]
[Date "2017.08.01"]
[Round "3"]
[White "MITerryble"]
[Black "Sven_Tica"]
[Result "1-0"]
[WhiteElo "2678"]
[BlackElo "2379"]
[TimeControl "180+2"]
[EndTime "13:41:56 PDT"]
[Termination "MITerryble won by resignation"]

1. d4 {[%clk 0:03:01.9]} 1... Nf6 {[%clk 0:03:00.5]} 2. Nf3 {[%clk 0:03:03]}
2... e6 {[%clk 0:03:01.4]} 3. c4 {[%clk 0:03:03.7]} 3... b6 {[%clk 0:02:59.3]}
4. g3 {[%clk 0:03:04.7]} 4... Bb4+ {[%clk 0:02:58.8]} 5. Nbd2 {[%clk 0:03:04.2]}
5... Bb7 {[%clk 0:02:56.5]} 6. Bg2 {[%clk 0:03:04.9]} 6... O-O {[%clk
0:02:56.9]} 7. O-O {[%clk 0:03:05.5]} 7... d5 {[%clk 0:02:56.5]} 8. Qc2 {[%clk
0:03:00.6]} 8... Nbd7 {[%clk 0:02:45]} 9. Rd1 {[%clk 0:02:57.4]} 9... h6 {[%clk
0:02:43.3]} 10. Ne5 {[%clk 0:02:58]} 10... Nxe5 {[%clk 0:02:32.1]} 11. dxe5
{[%clk 0:02:58.9]} 11... Nd7 {[%clk 0:02:33.1]} 12. cxd5 {[%clk 0:02:55.1]}
12... exd5 {[%clk 0:02:32]} 13. Nc4 {[%clk 0:02:52.7]} 13... c6 {[%clk
0:02:09.3]} 14. Nd6 {[%clk 0:02:43.7]} 14... Bxd6 {[%clk 0:02:04.6]} 15. exd6
{[%clk 0:02:45.6]} 15... Qf6 {[%clk 0:02:06.2]} 16. e4 {[%clk 0:02:36.7]} 16...
Qxd6 {[%clk 0:01:53.9]} 17. Bf4 {[%clk 0:02:37]} 17... Qc5 {[%clk 0:01:50.8]}
18. Qxc5 {[%clk 0:02:21.4]} 18... Nxc5 {[%clk 0:01:52.7]} 19. exd5 {[%clk
0:02:22.9]} 19... cxd5 {[%clk 0:01:54]} 20. Bxd5 {[%clk 0:02:24.8]} 20... Rad8
{[%clk 0:01:49.1]} 21. Bxb7 {[%clk 0:02:24.3]} 21... Nxb7 {[%clk 0:01:51]} 22.
b4 {[%clk 0:02:23.6]} 22... Rxd1+ {[%clk 0:01:47.8]} 23. Rxd1 {[%clk 0:02:23.8]}
23... Rd8 {[%clk 0:01:49.4]} 24. Rc1 {[%clk 0:02:22.8]} 24... Rd7 {[%clk
0:01:49.9]} 25. Rc8+ {[%clk 0:02:21.8]} 25... Kh7 {[%clk 0:01:50.5]} 26. Ra8
{[%clk 0:02:19.6]} 26... Nd8 {[%clk 0:01:48.3]} 27. b5 {[%clk 0:02:16.9]} 27...
Ne6 {[%clk 0:01:48.4]} 28. Be3 {[%clk 0:02:16.3]} 28... Kg6 {[%clk 0:01:33.5]}
29. a4 {[%clk 0:02:16.6]} 29... Kf5 {[%clk 0:01:31.5]} 30. Kg2 {[%clk
0:02:13.3]} 30... Ke4 {[%clk 0:01:31]} 31. Rc8 {[%clk 0:01:49.5]} 31... Rc7
{[%clk 0:01:25.9]} 32. Ra8 {[%clk 0:01:45.3]} 32... Kd5 {[%clk 0:01:25.3]} 33.
a5 {[%clk 0:01:44.4]} 33... bxa5 {[%clk 0:01:18.3]} 34. Bxa7 {[%clk 0:01:45.1]}
34... Kc4 {[%clk 0:01:15]} 35. Bb6 {[%clk 0:01:32.4]} 35... Rb7 {[%clk 0:01:16]}
36. Bxa5 {[%clk 0:01:32.3]} 36... Kxb5 {[%clk 0:01:17]} 37. Bd2 {[%clk
0:01:30.3]} 37... h5 {[%clk 0:01:15.8]} 38. h3 {[%clk 0:01:29.3]} 38... Kc6
{[%clk 0:01:16.3]} 39. Rh8 {[%clk 0:01:21.1]} 39... g6 {[%clk 0:01:16]} 40. Rh7
{[%clk 0:01:22.3]} 40... Kd5 {[%clk 0:01:16.2]} 41. Bc3 {[%clk 0:01:23]} 41...
Ke4 {[%clk 0:01:15.3]} 42. Rh8 {[%clk 0:01:18.7]} 42... Rc7 {[%clk 0:01:13.3]}
43. Bd2 {[%clk 0:01:18.7]} 43... Rc2 {[%clk 0:01:12]} 44. Be3 {[%clk 0:01:19.7]}
44... Kf5 {[%clk 0:01:11.1]} 45. Ra8 {[%clk 0:01:19.3]} 45... Kf6 {[%clk
0:01:12]} 46. Ra5 {[%clk 0:01:20]} 46... Rc4 {[%clk 0:01:09.2]} 47. Kf3 {[%clk
0:01:21]} 47... Rb4 {[%clk 0:01:10]} 48. g4 {[%clk 0:01:19.2]} 48... hxg4+
{[%clk 0:01:10.3]} 49. hxg4 {[%clk 0:01:21.1]} 49... Nd4+ {[%clk 0:01:11.6]} 50.
Kg2 {[%clk 0:01:19]} 50... Ne6 {[%clk 0:01:12.7]} 51. g5+ {[%clk 0:01:18.8]}
51... Kg7 {[%clk 0:01:13]} 52. Kg3 {[%clk 0:01:19.1]} 52... Rc4 {[%clk 0:01:13]}
53. Rd5 {[%clk 0:01:17.8]} 53... Kf8 {[%clk 0:01:12.9]} 54. f4 {[%clk
0:01:12.9]} 54... Ke7 {[%clk 0:01:13.9]} 55. Ra5 {[%clk 0:01:07.3]} 55... Ng7
{[%clk 0:01:09.7]} 56. Ra7+ {[%clk 0:01:07]} 56... Ke6 {[%clk 0:01:10.8]} 57.
Ra6+ {[%clk 0:01:07.3]} 57... Kd5 {[%clk 0:01:11.4]} 58. Ra5+ {[%clk 0:00:55.9]}
58... Ke4 {[%clk 0:01:05.6]} 59. Re5+ {[%clk 0:00:56.1]} 59... Kd3 {[%clk
0:01:06.9]} 60. Kf3 {[%clk 0:00:44.8]} 60... Nf5 {[%clk 0:01:01.9]} 61. Bf2
{[%clk 0:00:45.7]} 61... Rc7 {[%clk 0:00:49.8]} 62. Rd5+ {[%clk 0:00:46.5]}
62... Kc4 {[%clk 0:00:51.1]} 63. Rd1 {[%clk 0:00:47.4]} 63... Re7 {[%clk
0:00:51.5]} 64. Rd8 {[%clk 0:00:47.6]} 64... Kc3 {[%clk 0:00:49.9]} 65. Bc5
{[%clk 0:00:47.2]} 65... Rc7 {[%clk 0:00:49.7]} 66. Bb6 {[%clk 0:00:45.9]} 66...
Rb7 {[%clk 0:00:50]} 67. Bf2 {[%clk 0:00:42.6]} 67... Re7 {[%clk 0:00:47.8]} 68.
Rc8+ {[%clk 0:00:40.7]} 68... Kd3 {[%clk 0:00:48.5]} 69. Rc1 {[%clk 0:00:37.4]}
69... Kd2 {[%clk 0:00:45.6]} 70. Ra1 {[%clk 0:00:37.5]} 70... Rb7 {[%clk
0:00:42.3]} 71. Ra2+ {[%clk 0:00:33.6]} 71... Kd3 {[%clk 0:00:42.9]} 72. Ra3+
{[%clk 0:00:35]} 72... Kd2 {[%clk 0:00:44.2]} 73. Ra5 {[%clk 0:00:34.1]} 73...
Rb3+ {[%clk 0:00:43.4]} 74. Ke4 {[%clk 0:00:32.2]} 74... Ke2 {[%clk 0:00:43.9]}
75. Bc5 {[%clk 0:00:30]} 75... Rc3 {[%clk 0:00:33.2]} 76. Ra2+ {[%clk
0:00:21.8]} 76... Kd1 {[%clk 0:00:33.2]} 77. Ba7 {[%clk 0:00:19.4]} 77... Ng3+
{[%clk 0:00:31.7]} 78. Ke5 {[%clk 0:00:19.8]} 78... Ne2 {[%clk 0:00:32.2]} 79.
Bb8 {[%clk 0:00:14.4]} 79... Rc6 {[%clk 0:00:31.4]} 80. Ra7 {[%clk 0:00:10.3]}
80... Rc8 {[%clk 0:00:31.1]} 81. Bd6 {[%clk 0:00:09.9]} 81... Re8+ {[%clk
0:00:29.1]} 82. Kd5 {[%clk 0:00:06.6]} 82... Nc3+ {[%clk 0:00:29.6]} 83. Kc4
{[%clk 0:00:04.9]} 83... Rc8+ {[%clk 0:00:29.5]} 84. Bc7 {[%clk 0:00:05.2]}
84... Ne2 {[%clk 0:00:28.5]} 85. Kd3 {[%clk 0:00:04.5]} 85... Re8 {[%clk
0:00:23.8]} 86. Be5 {[%clk 0:00:05.2]} 86... Rd8+ {[%clk 0:00:24.4]} 87. Ke3
{[%clk 0:00:05.6]} 87... Rf8 {[%clk 0:00:21.4]} 88. Ra1+ {[%clk 0:00:06.2]}
88... Nc1 {[%clk 0:00:22.8]} 89. Bb2 {[%clk 0:00:06.9]} 89... Re8+ {[%clk
0:00:20.9]} 90. Kd4 {[%clk 0:00:07]} 90... Rd8+ {[%clk 0:00:21.4]} 91. Ke5
{[%clk 0:00:07.5]} 91... Kc2 {[%clk 0:00:18.9]} 92. Bxc1 {[%clk 0:00:07.9]} 1-0